Cogmind - Beta 16 @@@ ROGUE MODE // 2025.11.19 @ 02:39:35 Player: Demo Result: Destroyed by S-43 Plague with Heavy Machine Gun Performance ------------- Evolutions (7) 3500 Regions Visited (13) 2600 Robots Destroyed (65) 325 Value Destroyed (2908) 2908 Prototype IDs (12) 240 Alien Tech Used (0) 0 Bonus (2243) 2243 TOTAL SCORE: 11816 Bonus ------- Follower Combat Kills 1001 Entered DSFs 500 Registered with UFD 300 Met Optimus in HQ 500 Friendly Fire -58 Cogmind --------- Core Integrity 0/1300 Matter 266/300 Energy 96/100 System Corruption 9% Temperature Cool (0) Movement Core (50) Location -3/Research Parts ------- > --- POWER (2) -------- (None) > --- PROPULSION (4) --- (None) > --- UTILITY (12) ----- Enhanced Optical Array Advanced Signal Interpreter Melee Analysis Suite Hacking Suite > --- WEAPON (3) ------- (None) > --- INVENTORY (5) ---- Experimental Power Amplifier Experimental Thermal Generator Advanced Force Booster Improved Plasma Cutter Peak State ------------ > --- POWER ------------ Neutrino Core > --- PROPULSION ------- Heavy Armored Exoskeleton > --- UTILITY ---------- Advanced Heat Sink Advanced Heat Sink Large Storage Unit Deep Structural Scanner Enhanced Optical Array Improved Signal Interpreter Improved Terrain Scanner Advanced Terrain Scan Processor Nanoactuators Hacking Suite Hacking Suite > --- WEAPON ----------- Fusion Bomb Launcher Ragnarok Missile Launcher Lance > --- INVENTORY -------- Light Antimatter Reactor Micro Antimatter Reactor Flexi-carbon Leg Flexi-carbon Leg Flexi-carbon Leg Thunder Leg Advanced Heat Sink Advanced Heat Sink Force Booster Improved Plasma Cutter CPS Tube DRS Beacon [Rating: 111] Favorites ----------- Power Nuclear Core Engine Ion Engine Power Core Nuclear Core Reactor Antimatter Reactor Propulsion Wheel Treads Light Treads Leg Flexi-carbon Leg Wheel Wheel Hover Unit Backup Propulsion III Flight Unit Q-thruster Utility Hacking Suite Device Deep Structural Scanner Storage Large Storage Unit Processor Enhanced Optical Array Hackware Hacking Suite Protection Hardened Light Armor Plating Weapon Lance Energy Gun Autobeam Ballistic Gun Subdweller Machine Gun Ballistic Cannon Battle Cannon Launcher Fusion Bomb Launcher Special Weapon CPS Tube Impact Weapon Power Maul Slashing Weapon Plasma Sword Piercing Weapon Lance Build | -11 -10 -10 -10 -7 -7 -5 -5 -5 -5 -4 -4 -4 -3 ------- Run | Yrd Mat Min Sub Rec Scr Fac Was Fac DSF Fac Was Fac Res Slots Evolved 14 | . . . . . . 10 . . . 2 . . 2 Power 1 | . . . . . . . . . . . . . 1 Propulsion 2 | . . . . . . 2 . . . . . . . Utility 10 | . . . . . . 7 . . . 2 . . 1 Weapon 1 | . . . . . . 1 . . . . . . . Parts Attached 132 | 7 . . 8 . 5 24 9 . 2 37 8 7 25 Power 15 | 1 . . 1 . 1 . 1 . . 6 1 . 4 Engine 3 | 1 . . . . . . . . . 1 . . 1 Core 6 | . . . 1 . 1 . . . . 3 . . 1 Reactor 6 | . . . . . . . 1 . . 2 1 . 2 Propulsion 32 | 2 . . 1 . 1 6 4 . . 11 . . 7 Treads 3 | 1 . . 1 . . 1 . . . . . . . Leg 12 | . . . . . . . 1 . . 11 . . . Wheel 6 | 1 . . . . 1 4 . . . . . . . Hover 5 | . . . . . . 1 3 . . . . . 1 Flight 6 | . . . . . . . . . . . . . 6 Utility 56 | 2 . . 1 . 3 11 1 . 2 16 4 5 11 Device 26 | 1 . . 1 . 1 3 1 . 1 12 1 1 4 Storage 5 | 1 . . . . 2 1 . . . . . . 1 Processor 8 | . . . . . . 3 . . 1 1 . 1 2 Hackware 6 | . . . . . . 1 . . . 1 . 1 3 Protection 11 | . . . . . . 3 . . . 2 3 2 1 Artifact . | . . . . . . . . . . . . . . Weapon 29 | 2 . . 5 . . 7 3 . . 4 3 2 3 Energy Gun 7 | . . . 2 . . 2 1 . . 2 . . . Energy Cannon . | . . . . . . . . . . . . . . Ballistic Gun 4 | 2 . . 1 . . . . . . . . . 1 Ballistic Cannon 3 | . . . 1 . . . . . . . 2 . . Launcher 4 | . . . 1 . . . 1 . . . 1 . 1 Special Weapon 1 | . . . . . . . . . . 1 . . . Impact Weapon 1 | . . . . . . 1 . . . . . . . Slashing Weapon 4 | . . . . . . 1 1 . . 1 . . 1 Piercing Weapon 5 | . . . . . . 3 . . . . . 2 . Special Melee Weapon . | . . . . . . . . . . . . . . Unidentified Prototypes 6 | . . . . . . . 2 . . . 1 . 3 Parts Lost 68 | . . . 6 . . 1 . . 2 25 . 14 20 Power 10 | . . . 2 . . . . . . 4 . 1 3 Propulsion 16 | . . . 1 . . . . . . 4 . 4 7 Utility 27 | . . . 1 . . . . . 2 10 . 6 8 Weapon 15 | . . . 2 . . 1 . . . 7 . 3 2 Highest Loss Streak 15 | . . . 5 . . 1 . . 2 11 . 10 15 To Critical Strikes 2 | . . . . . . . . . . 1 . 1 . Average Backups 10 | 1 4 5 4 6 9 13 13 14 13 11 11 12 4 Power . | . . . . . . . . 1 . . 1 1 . Propulsion 1 | . 2 2 1 1 . 2 . . 1 2 2 2 . Utility 4 | . 1 2 1 1 4 5 6 7 5 3 3 5 2 Weapon 2 | . . 1 2 4 3 3 4 4 3 1 1 1 . Tool/Special . | . . . . . . . . . . . . . . Unused Backups 19 | . . . . . 7 5 2 . 1 . . 2 2 Power 3 | . . . . . 1 1 . . . . . 1 . Propulsion 4 | . . . . . 1 . 1 . 1 . . . 1 Utility 7 | . . . . . 3 2 1 . . . . 1 . Weapon 4 | . . . . . 2 2 . . . . . . . Tool/Special 1 | . . . . . . . . . . . . . 1 Average Slot Usage (%) 86 | . 100 100 93 85 90 90 83 82 79 89 87 80 54 Core 3 | . . . 9 . 4 5 2 . . 2 3 . . Reactor 1 | . . . . . . . 2 5 5 2 1 4 1 Treads 2 | . 14 14 13 14 2 2 . . . . . . . Leg 5 | . . . . . . . 2 5 5 17 13 5 . Wheel 8 | . 14 14 14 14 25 13 . . . . . . . Device 15 | . 14 14 13 14 13 14 17 17 14 21 22 7 2 Storage 7 | . 14 14 14 14 14 5 5 5 5 5 5 4 . Processor 11 | . . . . . . 15 17 17 18 16 15 16 19 Hackware 5 | . . . . . . 4 5 5 5 8 10 13 13 Protection 3 | . . . . . . 6 5 5 3 1 3 11 1 Energy Gun 1 | . . . 3 . . 2 4 5 5 2 . . . Ballistic Gun 4 | . 28 28 14 14 14 . . . . . . . . Ballistic Cannon 4 | . . . 7 14 14 2 . . . . 3 8 . Piercing Weapon 4 | . . . . . . 7 1 5 11 7 5 5 4 Peak Build Rating 111 | 7 7 7 12 9 20 64 90 83 92 108 111 99 105 Average Rating 58 | 5 7 7 9 9 11 52 74 83 88 94 94 88 63 On Entrance 40 | . 7 7 7 9 9 15 62 83 83 91 72 94 30 Avg Prop Armor Cover (%) 13 | 19 13 13 12 13 13 10 . . . 13 . 36 20 Naked Turns . | . . . . . . . . . . . . . . Heaviest Build 75 | 14 14 14 18 13 55 47 61 52 58 60 71 75 23 Greatest Support 93 | 16 16 16 16 16 26 36 90 90 90 93 90 90 32 Greatest Overweight (x) 2 | 2 . . 1 . 2 2 1 . . 1 . . 1 Average Overweight (x) . | . . . . . . 1 . . . . . . . Largest Inventory Capacity 20 | 8 8 8 8 8 20 15 15 15 15 15 15 15 20 Average Capacity 12 | 7 8 8 8 8 10 15 15 15 15 15 15 14 5 Most Carried 20 | 3 5 5 6 6 20 15 15 15 15 15 15 15 5 Average Carried 11 | 1 4 5 4 6 10 14 14 15 14 14 13 13 4 Final Capacity 15 | 8 8 8 8 8 15 15 15 15 15 15 15 5 5 Final Carried 15 | 3 5 5 6 6 15 15 15 15 15 15 15 5 4 Class Distribution -------------------- 30% | Mutant 21% | Scavenger-Assassin 13% | Hacker-Assassin 4% | Assassin 4% | Hacker-Mutant 4% | Scavenger-Gladiator 3% | Hacker-Gladiator 3% | Derelict-Assassin 3% | Skirmisher Dominant Class ---------------- Mutant | -10/Materials Mutant | -10/Mines Mutant | -10/Subcaves Mutant | -7/Recycling Mutant | -7/Scraptown Scavenger-Assassin | -5/Factory Skirmisher | -5/Waste Skirmisher | -5/Factory Assassin | -5/DSF Scavenger-Assassin | -4/Factory Hacker-Assassin | -4/Waste Hacker-Assassin | -4/Factory Hacker-Gladiator | -3/Research Resources | -11 -10 -10 -10 -7 -7 -5 -5 -5 -5 -4 -4 -4 -3 ----------- Run | Yrd Mat Min Sub Rec Scr Fac Was Fac DSF Fac Was Fac Res Matter Collected 2811 | 284 . . 170 . 397 314 221 . 42 496 496 206 185 Remotely . | . . . . . . . . . . . . . . Salvage Created 3651 | 80 . . 145 . . 410 . . 230 1349 361 768 308 Parts 152 | 7 . . 12 . . 20 . . 7 50 1 29 26 Haulers Intercepted 2 | . . . . . . 1 . . . . . 1 . Recyclers Shooed 2 | . . . . . . . . . . . . 2 . Parts Field Recycled . | . . . . . . . . . . . . . . Retrieved Matter . | . . . . . . . . . . . . . . Parts Self-Destructed 11 | . . . 11 . . . . . . . . . . Prevented . | . . . . . . . . . . . . . . Parts Restored . | . . . . . . . . . . . . . . Kills | -11 -10 -10 -10 -7 -7 -5 -5 -5 -5 -4 -4 -4 -3 ------- Run | Yrd Mat Min Sub Rec Scr Fac Was Fac DSF Fac Was Fac Res Combat Hostiles Destroyed 41 | . . . 4 . . 4 . . 3 15 2 8 5 Melee 28 | . . . . . . 3 . . 1 15 . 5 4 Guns 2 | . . . . . . . . . 2 . . . . Cannons 2 | . . . . . . 1 . . . . . 1 . AOE 9 | . . . 4 . . . . . . . 2 2 1 Classes Destroyed 16 | 1 . . 2 . . 4 . . 2 3 1 1 2 Worker 7 | . . . . . . 2 . . . 2 . 2 1 Builder 1 | . . . . . . . . . . . . 1 . Tunneler 5 | 3 . . . . . 2 . . . . . . . Hauler 2 | . . . . . . 1 . . . . . 1 . Recycler 4 | . . . . . . . . . . 2 . 2 . Mechanic 1 | . . . . . . . . . . . . . 1 Operator 2 | . . . . . . . . . . 1 . 1 . Turret 2 | . . . 2 . . . . . . . . . . Cutter 3 | . . . . . . . . . . . . . 3 Grunt 17 | . . . . . . . . . . 13 . 4 . Sentry 4 | . . . . . . 2 . . 1 . . 1 . Specialist 1 | . . . . . . . . . 1 . . . . Hunter 2 | . . . . . . . . . 1 . . 1 . Programmer 7 | . . . . . . 2 . . . 2 . 1 2 Compactor 2 | . . . . . . . . . . . 2 . . Subdweller 4 | . . . 4 . . . . . . . . . . Thug 1 | . . . . . . . . . . . . 1 . Best Kill Streak 7 | 2 . . 2 . . 2 . . 2 4 1 7 4 Combat Bots Only 4 | . . . 2 . . 2 . . 2 4 1 3 3 Max Kills in Single Turn 3 | 1 . . 1 . . 1 . . 1 1 1 3 1 Gunslinging . | . . . . . . . . . . . . . . Exploded 1 | . . . 1 . . . . . . . 1 1 1 Melee 1 | . . . . . . 1 . . 1 1 . 1 1 Uniques/NPCs Destroyed . | . . . . . . . . . . . . . . Combat | -11 -10 -10 -10 -7 -7 -5 -5 -5 -5 -4 -4 -4 -3 -------- Run | Yrd Mat Min Sub Rec Scr Fac Was Fac DSF Fac Was Fac Res Hostile Shots Fired 818 | . 2 . 90 . . 23 . . 42 307 . 189 165 Missed 267 | . 2 . 31 . . 5 . . 15 97 . 59 58 Hits 551 | . . . 59 . . 18 . . 27 210 . 130 107 Melee 9 | . . . . . . . . . . . . . 9 Projectile 542 | . . . 59 . . 18 . . 27 210 . 130 98 AOE 1 | . . . . . . . . . . . . . 1 Critical Strikes 34 | . . . . . . 2 . . 1 12 . 7 12 Actively Blocked 2 | . . . . . . . . . . . . . 2 Damage Taken 11649 | . . . 924 . . 394 . . 879 4083 57 2812 2500 Core 2481 | . . . 138 . . 42 . . 103 457 . 426 1315 Absorbed by Shields . | . . . . . . . . . . . . . . Redirected to Shielding 203 | . . . . . . 15 . . 87 . . . 101 Ignored by Resistances 161 | . . . . . . . . . . 161 . . . Regen/Repaired (Parts) 1706 | . . . . . . . 98 . 369 . 1087 152 . Core Remaining (%) 63 | 100 . . . . 44 . . . 85 . . 23 . Volleys Fired 114 | 6 . . 52 . . 16 4 . . 14 16 4 2 Largest 3 | 2 . . 2 . . 3 1 . . 1 1 2 1 Hottest 142 | 40 . . 63 . . 142 30 . . 63 52 80 30 Shots Fired 190 | 12 . . 74 . . 30 12 . 19 20 16 5 2 Gun 127 | 12 . . 53 . . 15 8 . 19 19 . . 1 Cannon 26 | . . . 10 . . 14 . . . . . 2 . Launcher 36 | . . . 11 . . 1 4 . . . 16 3 1 Special 1 | . . . . . . . . . . 1 . . . Kinetic 96 | 12 . . 63 . . 18 . . . . . 2 1 Thermal 57 | . . . . . . 11 8 . 19 19 . . . Explosive 36 | . . . 11 . . 1 4 . . . 16 3 1 Electromagnetic . | . . . . . . . . . . . . . . Robot Hit Streak 32 | 5 . . 32 . . 5 3 . 3 3 5 2 3 Robot Miss Streak 8 | 1 . . 2 . . 1 3 . 4 8 1 1 . Penetration Max . | . . . . . . . . . . . . . . Secondary Targets . | . . . . . . . . . . . . . . Autonomous 35 | . . . . . . . 10 . 19 6 . . . Shots Hit Robots 266 | 9 . . 46 . . 32 8 . 20 86 9 32 24 Core Hits 123 | 3 . . 11 . . 14 4 . 15 39 5 19 13 Critical Kills . | . . . . . . . . . . . . . . Critical Parts Destroyed 2 | 1 . . . . . . . . . . . 1 . Critical Strikes 15 | 1 . . . . . 1 . . . 10 . 1 2 Destroy 2 | 1 . . . . . . . . . . . 1 . Blast 1 | . . . . . . 1 . . . . . . . Sever 6 | . . . . . . . . . . 6 . . . Impale 6 | . . . . . . . . . . 4 . . 2 Melee Attacks 254 | . . . . . . 55 . . 3 118 . 37 41 Impact . | . . . . . . . . . . . . . . Slashing 71 | . . . . . . 18 . . . 53 . . . Piercing 183 | . . . . . . 37 . . 3 65 . 37 41 Sneak Attacks 15 | . . . . . . 5 . . . 4 . 4 2 Combat Hostiles . | . . . . . . . . . . . . . . Follow-up Attacks 26 | . . . . . . 5 . . . 15 . . 6 Damage Inflicted 11680 | 106 . . 604 . . 1078 336 . 300 3451 2212 2640 953 Guns 726 | 106 . . 88 . . 132 99 . 225 56 . . 20 Cannons 274 | . . . 68 . . 151 . . . . . 37 18 Explosions 4502 | . . . 448 . . . 237 . . 56 2212 1492 57 Melee 6165 | . . . . . . 795 . . 75 3326 . 1111 858 Ramming 13 | . . . . . . . . . . 13 . . . Kinetic 516 | 106 . . 156 . . 197 . . . . . 37 20 Thermal 466 | . . . . . . 86 99 . 225 56 . . . Explosive 4446 | . . . 448 . . . 237 . . . 2212 1492 57 Electromagnetic 56 | . . . . . . . . . . 56 . . . Impact 18 | . . . . . . . . . . . . . 18 Slashing 1652 | . . . . . . 81 . . . 1571 . . . Piercing 4513 | . . . . . . 714 . . 75 1755 . 1111 858 Highest Corruption 9 | . 2 2 2 2 . 1 1 1 1 1 1 2 9 Average Corruption 1 | . 2 2 2 2 . 1 1 1 1 1 1 1 6 Corruption Purged 2 | . . . . . . . . . . . . 2 . Corruption Blocked . | . . . . . . . . . . . . . . Effects 34 | . 1 1 6 1 . 1 7 . . 5 6 2 4 Message Errors 12 | . 1 1 3 . . 1 3 . . 1 1 . 1 Matter Fused 10 | . . . 2 . . . 2 . . 2 3 . 1 Heat Flow Errors 2 | . . . . . . . 1 . . . . . 1 Energy Discharges 5 | . . . . . . . 1 . . 2 . 1 1 Parts Rejected 1 | . . . . . . . . . . . . 1 . Data Loss (minor) 2 | . . . . 1 . . . . . . 1 . . Data Loss (major) 1 | . . . 1 . . . . . . . . . . Alerts 1 | . . . . . . . . . . . 1 . . Overload Shots . | . . . . . . . . . . . . . . Overflow Damage 546 | . . . . . . 42 . . . 351 7 145 1 Projectiles 13 | . . . . . . . . . . . . 13 . Explosions 80 | . . . . . . . . . . . 7 72 1 Melee 453 | . . . . . . 42 . . . 351 . 60 . Knockbacks 1 | . . . 1 . . . . . . . . . . Impact . | . . . . . . . . . . . . . . Kinetic 1 | . . . 1 . . . . . . . . . . Secondary . | . . . . . . . . . . . . . . Self-Inflicted Damage 133 | . . . 39 . . . . . . . 59 . 35 Shots 3 | . . . 1 . . . . . . . 1 . 1 Rammed . | . . . . . . . . . . . . . . Targets Rammed 2 | . . . . . . . . . . 2 . . . Kicked 2 | . . . . . . . . . . 2 . . . Crushed . | . . . . . . . . . . . . . . Highest Temperature 441 | . . . . . . 84 233 . 441 314 . 117 326 Average Temperature 82 | . . . . . . 19 110 . 87 78 . 47 149 Received Heat Transfer 1858 | . . . 204 . . 45 . . 87 1167 . 292 63 Siege Activations . | . . . . . . . . . . . . . . Martial Activations . | . . . . . . . . . . . . . . Shielding Activations . | . . . . . . . . . . . . . . Robots Disrupted . | . . . . . . . . . . . . . . Combat Hostiles . | . . . . . . . . . . . . . . Robots Corrupted . | . . . . . . . . . . . . . . Combat Hostiles . | . . . . . . . . . . . . . . Parts Fried . | . . . . . . . . . . . . . . Impact Corruptions . | . . . . . . . . . . . . . . Robots Melted 1 | . . . . . . . . . 1 . . . . Combat Hostiles . | . . . . . . . . . . . . . . Parts Melted 2 | . . . . . . . . . 2 . . . . Heat Transferred 1560 | . . . . . . 185 375 . 800 200 . . . Parts Sabotaged . | . . . . . . . . . . . . . . Parts Stolen . | . . . . . . . . . . . . . . Parts Stripped . | . . . . . . . . . . . . . . Power Chain Reactions . | . . . . . . . . . . . . . . Alert | -11 -10 -10 -10 -7 -7 -5 -5 -5 -5 -4 -4 -4 -3 ------- Run | Yrd Mat Min Sub Rec Scr Fac Was Fac DSF Fac Was Fac Res Maximum Alert Level 1 | . . . . . . . . . 1 . . 1 . Low Security (%) 96 | 100 100 100 . 100 . 100 100 100 44 100 100 80 100 Level 1 3 | . . . . . . . . . 55 . . 19 . Level 2 . | . . . . . . . . . . . . . . Level 3 . | . . . . . . . . . . . . . . Level 4 . | . . . . . . . . . . . . . . Level 5 . | . . . . . . . . . . . . . . High Security . | . . . . . . . . . . . . . . Max Security . | . . . . . . . . . . . . . . Sterilizations 1 | . . . . . . . . . 1 . . . . Peak Influence 371 | 5 3 . . 15 . 50 34 . 371 194 160 239 124 Initial 194 | . 3 . . 15 . . . . . 194 46 . 71 Average 50 | 1 . . . 7 . 7 2 . 230 81 30 133 69 Influence Increases 2804 | 15 . . 40 . . 243 66 . 501 636 194 741 368 Destroy 0b10 Robot/C 1040 | . . . 40 . . 80 . . 200 340 . 280 100 Destroy 0b10 Robot/NC 130 | 15 . . . . . 25 . . 10 25 . 45 10 Destroy Leader 214 | . . . . . . 32 . . 30 60 . 62 30 Allied During Kill 407 | . . . . . . . . . 231 12 . 164 . Trap Triggered on 0b10 10 | . . . . . . . . . . . . 10 . Successful Hack 70 | . . . . . . 40 . . . 6 . 14 10 Disable Machine 180 | . . . . . . 30 . . . 90 . 60 . Destroy Structure 468 | . . . . . . 36 66 . 30 28 194 76 38 Partial Spotted 15 | . . . . . . . . . . . . . 15 Lose Combat Pursuer 270 | . . . . . . . . . . 75 . 30 165 Influence Decreases 2735 | 10 5 . 8 32 . 243 66 . 130 874 327 604 436 Entered New Map 349 | . 2 . . 17 . . . . . 177 87 . 66 Time Decay 1340 | 10 3 . 8 15 . 233 46 . . 407 220 228 170 Lost Part 620 | . . . . . . 10 . . 20 250 . 140 200 Lost Ally 345 | . . . . . . . 20 . 110 40 20 155 . Purge Threat 81 | . . . . . . . . . . . . 81 . Squads Dispatched 24 | . 1 . . . . 6 . . 2 5 . 5 5 Investigation 10 | . . . . . . 3 . . . 3 . 2 2 Extermination 6 | . . . . . . 2 . . . 2 . 1 1 Reinforcement 8 | . 1 . . . . 1 . . 2 . . 2 2 Assault . | . . . . . . . . . . . . . . Garrison . | . . . . . . . . . . . . . . Intercept . | . . . . . . . . . . . . . . Searches Triggered . | . . . . . . . . . . . . . . Construction Impeded 1 | . . . . . . . . . . . . 1 . Haulers Reinforced 1 | . . . . . . . . . . . . 1 . Active Scanning Responses . | . . . . . . . . . . . . . . Cargo Convoy Interrupts . | . . . . . . . . . . . . . . Stealth | -11 -10 -10 -10 -7 -7 -5 -5 -5 -5 -4 -4 -4 -3 --------- Run | Yrd Mat Min Sub Rec Scr Fac Was Fac DSF Fac Was Fac Res Distress Signals 2 | . 1 . . . . . . . . . . . 1 Communications Jammed . | . . . . . . . . . . . . . . Distress Signals . | . . . . . . . . . . . . . . Times Spotted 121 | . 4 . 7 . . 8 6 . 7 28 6 21 34 Peak Tracking Total 15 | . 4 . 2 . . 3 5 . 3 7 4 7 15 Tactical Retreats 8 | . . . . . . . . . . 2 . 2 4 Traps | -11 -10 -10 -10 -7 -7 -5 -5 -5 -5 -4 -4 -4 -3 ------- Run | Yrd Mat Min Sub Rec Scr Fac Was Fac DSF Fac Was Fac Res Traps Triggered 3 | . 1 . . . . 1 . . . 1 . . . Indirectly . | . . . . . . . . . . . . . . Trap Hack Attempts . | . . . . . . . . . . . . . . Triggered . | . . . . . . . . . . . . . . Disarmed . | . . . . . . . . . . . . . . Reprogrammed 2 | . . . . . . . . . . . . 2 . Reused 1 | . . . . . . . . . . . . 1 . Traps Extracted . | . . . . . . . . . . . . . . Installed . | . . . . . . . . . . . . . . Triggered 1 | . . . . . . . . . . . . 1 . Machines | -11 -10 -10 -10 -7 -7 -5 -5 -5 -5 -4 -4 -4 -3 ---------- Run | Yrd Mat Min Sub Rec Scr Fac Was Fac DSF Fac Was Fac Res Machines Disabled 14 | . . . 2 . . 2 . . . 6 . 4 . Max in Single Turn 3 | . . . 1 . . 1 . . . 3 . 1 . Machines Repaired . | . . . . . . . . . . . . . . Machines Dismantled . | . . . . . . . . . . . . . . Machines Sabotaged . | . . . . . . . . . . . . . . Overloaded Fab Kills . | . . . . . . . . . . . . . . Hacking | -11 -10 -10 -10 -7 -7 -5 -5 -5 -5 -4 -4 -4 -3 --------- Run | Yrd Mat Min Sub Rec Scr Fac Was Fac DSF Fac Was Fac Res Machines Accessed 24 | . . . . . 1 8 . 1 . 5 . 5 4 Terminals 11 | . . . . . . 4 . 1 . 1 . 3 2 Fabricators 1 | . . . . . . 1 . . . . . . . Repair Stations 1 | . . . . . . 1 . . . . . . . Recycling Units 8 | . . . . . . 2 . . . 2 . 2 2 Scanalyzers 1 | . . . . . . . . . . 1 . . . Garrison Access 1 | . . . . . . . . . . 1 . . . Total Hacks 99 | . . . . . 21 17 . 1 . 21 . 32 7 Successful 68 | . . . . . 21 13 . 1 . 13 . 15 5 Failed 30 | . . . . . . 4 . . . 8 . 16 2 Catastrophic . | . . . . . . . . . . . . . . Database Lockouts 1 | . . . . . . . . . . . . 1 . Manual 48 | . . . . . . 13 . . . 9 . 20 6 Terminals 48 | . . . . . . 11 . 1 . 5 . 27 4 Fabricators 1 | . . . . . . 1 . . . . . . . Repair Stations 3 | . . . . . . 3 . . . . . . . Recycling Units 16 | . . . . . . 2 . . . 6 . 5 3 Scanalyzers 7 | . . . . . . . . . . 7 . . . Garrison Access 3 | . . . . . . . . . . 3 . . . Terminal Hacks 39 | . . . . . 21 2 . 1 . 2 . 12 1 Record 21 | . . . . . 21 . . . . . . . . Robot Analysis 1 | . . . . . . . . . . . . 1 . Open Door 1 | . . . . . . 1 . . . . . . . Open DSF 1 | . . . . . . . . 1 . . . . . Branch Access Points 1 | . . . . . . . . . . . . 1 . Emergency Access Points 1 | . . . . . . . . . . . . 1 . Terminal Index 1 | . . . . . . . . . . . . 1 . Fabricator Index 1 | . . . . . . . . . . . . 1 . Repair Station Index 1 | . . . . . . . . . . . . 1 . Recycling Unit Index 2 | . . . . . . . . . . 1 . 1 . Alert Level 1 | . . . . . . . . . . . . 1 . Unreport Threat 1 | . . . . . . . . . . . . 1 . Locate Traps 2 | . . . . . . 1 . . . . . 1 . Reprogram Traps 1 | . . . . . . . . . . . . 1 . Recall Reinforcements 1 | . . . . . . . . . . . . . 1 Registered Components 2 | . . . . . . . . . . 1 . 1 . Fabricator Hacks . | . . . . . . . . . . . . . . Repair Station Hacks 1 | . . . . . . 1 . . . . . . . Refit 1 | . . . . . . 1 . . . . . . . Recycling Unit Hacks . | . . . . . . . . . . . . . . Scanalyzer 7 | . . . . . . . . . . 7 . . . Insert Component 2 | . . . . . . . . . . 2 . . . Analyze 4 | . . . . . . . . . . 4 . . . Retrieve Study 1 | . . . . . . . . . . 1 . . . Garrison Access Hacks . | . . . . . . . . . . . . . . Unauthorized Hacks 21 | . . . . . . 10 . . . 4 . 3 4 Terminals 13 | . . . . . . 7 . . . 2 . 2 2 Track 2 | . . . . . . 2 . . . . . . . Assimilate 3 | . . . . . . 2 . . . . . . 1 Botnet 7 | . . . . . . 3 . . . 1 . 2 1 Operators 1 | . . . . . . . . . . 1 . . . Fabricators 1 | . . . . . . 1 . . . . . . . Fabnet 1 | . . . . . . 1 . . . . . . . Repair Stations . | . . . . . . . . . . . . . . Recycling Units 7 | . . . . . . 2 . . . 2 . 1 2 Fedlink 7 | . . . . . . 2 . . . 2 . 1 2 Scanalyzers . | . . . . . . . . . . . . . . Garrison Access . | . . . . . . . . . . . . . . Data Cores Recovered . | . . . . . . . . . . . . . . Used . | . . . . . . . . . . . . . . Hacking Detections 16 | . . . . . . 4 . . . 5 . 4 3 Full Trace Events 3 | . . . . . . 1 . . . 1 . 1 . Feedback Events . | . . . . . . . . . . . . . . Feedback Blocked . | . . . . . . . . . . . . . . Robot Schematics Acquired . | . . . . . . . . . . . . . . Robots Built . | . . . . . . . . . . . . . . Authchips . | . . . . . . . . . . . . . . Time . | . . . . . . . . . . . . . . Total Robot Build Rating . | . . . . . . . . . . . . . . Part Schematics Acquired 2 | . . . . . . . . . . 2 . . . Parts Built . | . . . . . . . . . . . . . . Authchips . | . . . . . . . . . . . . . . Time . | . . . . . . . . . . . . . . Total Part Build Rating . | . . . . . . . . . . . . . . Part Studies Acquired 1 | . . . . . . . . . . 1 . . . Parts Repaired . | . . . . . . . . . . . . . . Time . | . . . . . . . . . . . . . . Parts Recycled . | . . . . . . . . . . . . . . Recycled Matter . | . . . . . . . . . . . . . . Retrieved Matter . | . . . . . . . . . . . . . . Retrieved Components . | . . . . . . . . . . . . . . Parts Scanalyzed 2 | . . . . . . . . . . 2 . . . Part Schematics Acquired 2 | . . . . . . . . . . 2 . . . Parts Damaged 1 | . . . . . . . . . . 1 . . . Bothacking | -11 -10 -10 -10 -7 -7 -5 -5 -5 -5 -4 -4 -4 -3 ------------ Run | Yrd Mat Min Sub Rec Scr Fac Was Fac DSF Fac Was Fac Res Used RIF Installer . | . . . . . . . . . . . . . . Robots Hacked . | . . . . . . . . . . . . . . Non-combat . | . . . . . . . . . . . . . . Combat . | . . . . . . . . . . . . . . Robot Hacks Applied . | . . . . . . . . . . . . . . Relay Couplers Released . | . . . . . . . . . . . . . . Fabnet Peak Effective % 3 | . . . . . . . . . . 3 3 3 1 Robots Rewired . | . . . . . . . . . . . . . . Allies Hacked . | . . . . . . . . . . . . . . Hacks Repelled . | . . . . . . . . . . . . . . Allies | -11 -10 -10 -10 -7 -7 -5 -5 -5 -5 -4 -4 -4 -3 -------- Run | Yrd Mat Min Sub Rec Scr Fac Was Fac DSF Fac Was Fac Res Total Allies 40 | . . 3 . . . 1 18 . . . 18 . . Largest Group 18 | . . 3 3 . . 1 18 15 15 2 18 12 . Highest-Rated Group 656 | . . 40 40 . . 26 656 581 581 92 656 506 . Highest-Rated Ally 50 | . . 16 16 . . 26 50 50 50 46 50 50 . Total Orders . | . . . . . . . . . . . . . . Ally Attacks 332 | . . . 53 . . . 99 . 63 21 48 48 . Total Damage 11191 | . . . 116 . . . 4277 . 1974 517 2759 1548 . Kills 37 | . . . 1 . . . 8 . 8 2 9 9 . Allies Corrupted . | . . . . . . . . . . . . . . Allies Melted 1 | . . . . . . . . . . . . 1 . Intel | -11 -10 -10 -10 -7 -7 -5 -5 -5 -5 -4 -4 -4 -3 ------- Run | Yrd Mat Min Sub Rec Scr Fac Was Fac DSF Fac Was Fac Res Active Infowar (turns) 7351 | 49 148 71 474 54 1322 1125 651 6 204 1092 1252 549 354 Optics 5193 | . . . . . . 1085 651 6 204 1092 1252 549 354 Sensors 1280 | . . . . . . 933 56 6 176 109 . . . IFF 41 | . . . . . . . . . . . . . 41 Terrain 2437 | . . . . . . . . . 44 777 1252 364 . Structural 3803 | . . . . . . 1124 22 6 176 749 1252 363 111 Seismic 3077 | 49 148 71 474 54 1322 905 16 6 32 . . . . Decoding 2148 | . . . . . . 1122 651 6 204 165 . . . Robot Analysis Total 1 | . . . . . . . . . . . . 1 . Derelict Logs Recovered 2 | . . . 1 . 1 . . . . . . . . Drone Launches . | . . . . . . . . . . . . . . Drone Recoveries . | . . . . . . . . . . . . . . Decoded 0b10 Intel 22 | . . . . . . 13 . . 5 4 . . . Traps 21 | . . . . . . 13 . . 4 4 . . . Emergency Access 1 | . . . . . . . . . 1 . . . . Exploration | -11 -10 -10 -10 -7 -7 -5 -5 -5 -5 -4 -4 -4 -3 ------------- Run | Yrd Mat Min Sub Rec Scr Fac Was Fac DSF Fac Was Fac Res Turns Passed 7517 | 79 148 71 508 54 1424 1125 651 6 204 1092 1252 549 354 Spaces Moved 5738 | 60 147 46 322 55 1425 805 576 5 133 575 811 323 455 Core 163 | 23 . . . . . . . . . . . 77 63 Treads . | . . . . . . . . . . . . . . Legs 1997 | . . . . . . . 227 5 133 575 811 246 . Wheels 2837 | 37 147 46 322 55 1425 805 . . . . . . . Hover 349 | . . . . . . . 349 . . . . . . Flight 392 | . . . . . . . . . . . . . 392 Fastest Speed 35 | 50 100 100 100 100 90 95 58 140 140 120 120 50 35 Average Speed 103 | 82 100 100 111 100 97 100 94 140 140 123 128 117 41 Slowest Speed 170 | 150 100 100 115 100 120 110 140 140 140 170 140 140 117 Overloaded Moves . | . . . . . . . . . . . . . . Propulsion Burnouts . | . . . . . . . . . . . . . . Robots Hopped 19 | . . . . . . . . . . . . . 19 Potential Cave-ins . | . . . . . . . . . . . . . . Cave-ins Triggered . | . . . . . . . . . . . . . . Exploration Rate (%) 37 | 4 34 19 13 15 74 15 96 . 79 13 96 16 17 Regions Visited 13 Branch Regions 4 Pre-discovered Areas 8 | . . . 1 . 6 1 . . . . . . . Known Exits Taken 2 | . . . . . . . . 1 . . . 1 . Unknown Exits Taken 6 | 1 1 1 1 1 1 . . . . . . . . Scrap Searched 5 | . . . . . 5 . . . . . . . . Spaces Dug 50 | . . . 3 . . 21 . . . 14 . 5 7 Terrain Destroyed 295 | . . . 60 . . 21 10 . . 14 149 22 19 Melee 39 | . . . . . . 13 . . . 14 . 5 7 Projectile 8 | . . . 6 . . 1 . . . . . 1 . AOE 248 | . . . 54 . . 7 10 . . . 149 16 12 Terrain Rammed . | . . . . . . . . . . . . . . Walls Destroyed . | . . . . . . . . . . . . . . Machines Disabled . | . . . . . . . . . . . . . . Actions | -11 -10 -10 -10 -7 -7 -5 -5 -5 -5 -4 -4 -4 -3 --------- Run | Yrd Mat Min Sub Rec Scr Fac Was Fac DSF Fac Was Fac Res Total 6860 | 75 148 71 397 54 1467 1031 684 4 147 810 1005 430 537 Wait 457 | . . 26 8 . 1 97 68 . . 54 140 38 25 Move 5691 | 59 146 45 321 54 1424 805 575 4 132 575 810 322 419 Hop 17 | . . . . . . . . . . . . . 17 Pick Up 68 | 3 2 . 2 . 21 15 3 . 5 4 8 3 2 Fast Attach 85 | 7 . . 5 . 2 9 5 . . 21 7 5 24 Attach 52 | . . . 3 . 1 10 8 . 2 11 6 7 4 Detach 24 | . . . 2 . . 4 7 . . 3 5 1 2 Swap 53 | . . . 3 . 4 12 3 . 2 22 2 4 1 Drop 83 | . . . 1 . 14 20 11 . 3 8 11 8 7 Fire 114 | 6 . . 52 . . 16 4 . . 14 16 4 2 Melee 213 | . . . . . . 43 . . 3 96 . 37 34 Ram . | . . . . . . . . . . . . . . Kick 2 | . . . . . . . . . . 2 . . . Crush . | . . . . . . . . . . . . . . Escape Stasis . | . . . . . . . . . . . . . . Rewire 1 | . . . . . . . . . . . . 1 . Trap . | . . . . . . . . . . . . . . Miscellaneous . | . . . . . . . . . . . . . . Route ------- -11/Scrapyard -10/Materials (discovered 2 exits: [*Mat] / [*Min]) -10/Mines -10/Subcaves (discovered 2 exits: [*Mat] / [*Rec]) -7/Recycling -7/Scraptown -5/Factory (discovered 7 exits: Fac x4 / *Upp / *Ext x2) -5/Waste -5/Factory -5/DSF -4/Factory -4/Waste -4/Factory (discovered 3 exits: *Res / Upp x2) -3/Research History --------- Turn | Location | Event 34 | -11/Scrapyard | Discovered new exit (range 15) 80 | -11/Scrapyard | Entered Materials 209 | -10/Materials | Discovered new exit (range 14) 210 | -10/Materials | Discovered new exit (range 15) 228 | -10/Materials | Entered Mines 260 | -10/Mines | Assisted by bots powering up and referring to "LRC-V3" 297 | -10/Mines | Discovered new exit (range 3) 299 | -10/Mines | Entered Subcaves 299 | -10/Subcaves | Accompanied by 3 allies 300 | -10/Subcaves | Approached by a straggling Scientist 302 | -10/Subcaves | Shifting Twisted Machinery released Flamer 303 | -10/Subcaves | Shifting Twisted Machinery released Riot Gun 308 | -10/Subcaves | Ambushed by Subdwellers from Twisted Machinery 309 | -10/Subcaves | Build established: Mutant 400 | -10/Subcaves | Ambushed by Subdweller buried in earth 426 | -10/Subcaves | Lost 5 parts (1p1n1u2w) 498 | -10/Subcaves | Learned location of Zion (-7) 540 | -10/Subcaves | Shifting Twisted Machinery released Battle Cannon 734 | -10/Subcaves | Discovered new exit (range 5) 779 | -10/Subcaves | Core integrity fell below 50% 783 | -10/Subcaves | Discovered new exit (range 8) 807 | -10/Subcaves | Entered Recycling 835 | -7/Recycling | Scanned before Scraplab entrance 849 | -7/Recycling | Entered Scraplab 858 | -7/Recycling | Discovered new exit (range 3) 861 | -7/Recycling | Entered Scraptown 861 | -7/Scraptown | System corruption cleaned by C-Scrubber 958 | -7/Scraptown | Scanned Subdweller tech in exchange for log data 961 | -7/Scraptown | Learned location of Warlord (-5) 1025 | -7/Scraptown | Visited UFD Registry 1025 | -7/Scraptown | Registered with UFD as "Metaslasher" 1104 | -7/Scraptown | Visited Cartography Club 1148 | -7/Scraptown | Found Deep Structural Scanner 1167 | -7/Scraptown | Learned location of Lower Caves (-7) 1167 | -7/Scraptown | Learned location of Upper Caves (-4) 1167 | -7/Scraptown | Learned location of Proximity Caves (-6) 1167 | -7/Scraptown | Learned 12 Factory zone layouts 1167 | -7/Scraptown | Learned 12 Research zone layouts 1167 | -7/Scraptown | Learned 4 Access zone layouts 1167 | -7/Scraptown | Learned 16 Factory zone layouts 1167 | -7/Scraptown | Learned 4 Recycling zone layouts 1167 | -7/Scraptown | Learned 16 Lower Caves zone layouts 1167 | -7/Scraptown | Learned 20 Upper Caves zone layouts 1167 | -7/Scraptown | Learned 16 Proximity Caves zone layouts 1167 | -7/Scraptown | Learned 4 Armory zone layouts 1167 | -7/Scraptown | Learned Factory emergency access door positions 1167 | -7/Scraptown | Learned location of 3 exits from Lower Caves 1167 | -7/Scraptown | Learned location of 1 exit from Upper Caves 1167 | -7/Scraptown | Learned location of 3 exits from Upper Caves 1206 | -7/Scraptown | Visited Infowarlord's Domain 1227 | -7/Scraptown | Visited Research Penetration Think Tank 1252 | -7/Scraptown | Visited Derelict Rescue Squad 1257 | -7/Scraptown | Found DRS Beacon 1323 | -7/Scraptown | Visited DA-N13 Charitable Foundation 1331 | -7/Scraptown | Found DCF Scrap (27 items) 1349 | -7/Scraptown | Visited Science Guys 1365 | -7/Scraptown | Visited Scrap Suit Storage 2225 | -7/Scraptown | Met Optimus 2225 | -7/Scraptown | Accepted into 0bPrime 2283 | -7/Scraptown | Discovered new exit (range 3) 2285 | -7/Scraptown | Entered Factory 2285 | -5/Factory | Evolved 10 slots: Propulsion x2, Utility x7, Weapon x1 2286 | -5/Factory | Identified exit to Extension 2287 | -5/Factory | Identified exit to Factory 2287 | -5/Factory | Identified exit to Upper Caves 2515 | -5/Factory | Loaded intel: 8 recycling unit locations 2651 | -5/Factory | Learned location of Protoforge (-2) 2981 | -5/Factory | P-70 Sage assimilated allied Administrator 6a 3090 | -5/Factory | Discovered exit to Extension (range 9) 3156 | -5/Factory | Build established: Scavenger-Assassin 3410 | -5/Factory | Sucked down chute 3410 | -5/Factory | Entered Waste 3434 | -5/Waste | Spotted C-40 Crusher 3439 | -5/Waste | Spotted C-40 Crusher 3439 | -5/Waste | Spotted C-40 Crusher 3440 | -5/Waste | Spotted C-40 Crusher 3442 | -5/Waste | Spotted C-40 Crusher 3447 | -5/Waste | Spotted C-40 Crusher 3461 | -5/Waste | Warlord forces began an assault 3468 | -5/Waste | Allies destroyed C-40 Crusher 3474 | -5/Waste | Allies destroyed C-40 Crusher 3478 | -5/Waste | Allies destroyed C-40 Crusher 3478 | -5/Waste | Allies destroyed C-40 Crusher 3481 | -5/Waste | Allies destroyed C-40 Crusher 3527 | -5/Waste | Allies destroyed C-40 Crusher 3558 | -5/Waste | Lost 3 allies 3603 | -5/Waste | Discovered new exit (range 22) 3648 | -5/Waste | Found Prototype Device 3648 | -5/Waste | Identified Exp. Focal Shield 3705 | -5/Waste | Found Broken Fusion Bomb Launcher 4022 | -5/Waste | Identified exit to Factory 4061 | -5/Waste | Entered Factory 4061 | -5/Factory | Accompanied by 15 allies 4067 | -5/Factory | Identified exit to DSF 4067 | -5/Factory | Entered DSF 4067 | -5/DSF | Accompanied by 15 allies 4088 | -5/DSF | Additional patrols routed to DSF 4157 | -5/DSF | Lost 6 allies 4157 | -5/DSF | Discovered exit to Factory (range 14) 4161 | -5/DSF | Sterilization system engaged 4181 | -5/DSF | Ambient heat levels rising (+10) 4196 | -5/DSF | Ambient heat levels rising (+10) 4211 | -5/DSF | Ambient heat levels rising (+10) 4226 | -5/DSF | Ambient heat levels rising (+10) 4241 | -5/DSF | Ambient heat levels rising (+10) 4256 | -5/DSF | Ambient heat levels rising (+10) 4271 | -5/DSF | Ambient heat levels rising (+10) 4271 | -5/DSF | Entered Factory 4271 | -4/Factory | Accompanied by 2 allies 4271 | -4/Factory | Evolved 2 slots: Utility x2 4489 | -4/Factory | Lost 11 parts (2p6u3w) 4541 | -4/Factory | Attached CPS modules to O-16 Technician. 4733 | -4/Factory | Loaded intel: 8 recycling unit locations 4949 | -4/Factory | Lost 7 parts (2p1n3u1w) 5149 | -4/Factory | Lost 3 parts (2n1w) 5266 | -4/Factory | Spotted B-86 Titan 5357 | -4/Factory | Lost 3 parts (1n1u1w) 5363 | -4/Factory | Manually triggered Chute Trap 5363 | -4/Factory | Sucked down chute 5363 | -4/Factory | Entered Waste 5373 | -4/Waste | Spotted C-40 Crusher 5386 | -4/Waste | Destroyed C-40 Crusher 5398 | -4/Waste | Spotted C-40 Crusher 5415 | -4/Waste | Spotted C-40 Crusher 5420 | -4/Waste | Destroyed C-40 Crusher 5445 | -4/Waste | Spotted C-40 Crusher 5450 | -4/Waste | Spotted C-40 Crusher 5479 | -4/Waste | Spotted C-40 Crusher 5514 | -4/Waste | Discovered new exit (range 14) 5530 | -4/Waste | Warlord forces began an assault 5551 | -4/Waste | Allies destroyed C-40 Crusher 5560 | -4/Waste | Allies destroyed C-40 Crusher 5591 | -4/Waste | Lost 6 allies 5612 | -4/Waste | Found Prototype Launcher 5612 | -4/Waste | Identified Ragnarok Missile Launcher 6286 | -4/Waste | Found Broken Adv. Force Booster 6307 | -4/Waste | Build established: Hacker-Assassin 6587 | -4/Waste | Identified exit to Factory 6615 | -4/Waste | Entered Factory 6615 | -4/Factory | Accompanied by 12 allies 6712 | -4/Factory | P-70 Sage assimilated allied M8-ED7(g) 6810 | -4/Factory | Identified exit to Upper Caves 6810 | -4/Factory | Central database locked down 6851 | -4/Factory | Spotted B-86 Titan 6888 | -4/Factory | Lost 6 allies 7070 | -4/Factory | Core integrity fell below 50% 7142 | -4/Factory | Discovered new exit (range 8) 7143 | -4/Factory | Lost 10 parts (1p2n5u2w) 7149 | -4/Factory | Loaded intel: 8 recycling unit locations 7164 | -4/Factory | Identified exit to Research 7164 | -4/Factory | Entered Research 7164 | -3/Research | Evolved 2 slots: Power x1, Utility x1 7278 | -3/Research | Found Prototype Device 7278 | -3/Research | Identified Exp. ECM Suite 7341 | -3/Research | Loaded intel: 5 recycling unit locations 7360 | -3/Research | Lost 5 parts (2p3u) 7458 | -3/Research | Core integrity fell below 50% 7504 | -3/Research | Core integrity fell below 20% 7518 | -3/Research | Destroyed by S-43 Plague with Heavy Machine Gun Last Messages --------------- 07473_ Acquired Impulse Thruster. 07474_ Hacking Suite destroyed. 07475_ Dropped Imp. Antigrav System. 07476_ Impulse Thruster destroyed. 07476_ Acquired Impulse Thruster. 07479_ Impulse Thruster destroyed. 07481_ K-01 Serf cleans the Ion Accelerator. 07487_ S-43 Plague destroyed. 07488_ Acquired Hvy. Machine Gun. 07490_ Acquired Lgt. Antimatter Reactor. 07490_ Impulse Thruster Array destroyed. 07493_ System corrupted: Heat flow error (+194). 07493_ Dropped Lgt. Antimatter Reactor. 07497_ Impulse Thruster destroyed. 07497_ Slug penetrates Wall. 07502_ Dropped Hvy. Machine Gun. 07502_ K-01 Serf destroyed. 07508_ System corrupted: Matter fused (-10). 07517_ ALERT: Cargo convoy en route, clear transfer corridor. Map ----- +----------------------------------------------------+ | ??????????????????????????????????? #?????????? | | ??????????????????????????????????# #?????????? | | ??????????????????????????????????# #?????????? | | ??????????????????????????????????# #?????????? | | ??????????????????????????????????# #?????????? | | ?????????????????????????????????## #?????????? | | ???????????????????????????????? #?????????? | | # ??????? | | / ??????? | | ####### ########## # ??????? | | # ##################+##### # ??????? | | # # #???#! # # ??????? | | " # # #???# # =%#####+####? | | """" + + """ #???# """ !# * ?? | | """" # # """ #???# """ # #??? | | """" # # """ #???# """ # #### | | """" + # #???# # # | | ## ### #???# # # | | ## #?# #???# # """"" # | | ##+##### #?# #???#+##+##+### """"" # | | ?# #???# #?##########???# [""""" # | | ?# #???# #?# ######### # | | ?# #?### ### # # " | | ## ### # # /s # | | # # # # ################ # | | # + #########@###### # # | | # # #?# # ! *# # | | # ## # #?# # %/ # | | # ####+### #?# # ! # #### | | # #?# ## #?# """ """ # # #??? | | # #?# ####+##?# """ """ # ]] # #??? | | # ### #??# #??# """ """ # ] # #??? | | # #??# #??# """ # # #??? | | # #??# #??# """ ########### #??? | | # #??# #??# #?????????+ #??? | | T + #??# #??# ? k #?????????# #??? | | #####??# #??#?? #?????????# #??? | | #??????# #????? t #?????????# #??? | | #???#### ###???####/#####??????????# #??? | | ##+#####?## ??????? ???????????????# #??? | | #?# ###??????? ???????????????# #??? | | #?#T #????????? ???????????????# ??? | | #?## #????????? ???????????????# #??? | | """" #??# #????????? ???????????????# #??? | | """" #### #+###??????? ???????????????? #??? | | """" + + ??????? ????????????????# ##??? | | """" ####+## ??????? ????????????????? #???? | | ## # ????????????????????????? #???? | | ## # ????????????????????????? ????? | | ######### # ????????????????????????? ????? | +----------------------------------------------------+ Best States ------------- Heat Dissipation 81 Energy Generation 21 Energy Capacity 325 Matter Stores 300 Matter Capacity 500 Sight Range 22 Robot Scan Range 15 Terrain Scan Range 16 Terrain Scan Density 210 Armor Coverage 675 Resistance: KI 30 Propulsion Shielding 66 Utility Shielding 66 Melee Speed Boost 30 Phase Shifting 10 Evasion (%) 80 Melee Accuracy 10 Recoil Reduction 1 Force Boost 40 Offensive Hacking 56 Defensive Hacking 10 Item Schematics ----------------- Hvy. Armored Exoskeleton | -4/Factory | Scanalyzed Nanoactuators | -4/Factory | Scanalyzed Robot Schematics ------------------ None Fabricated ------------ Nothing Repaired ---------- Nothing Studied --------- Lance | -4/Factory | Hacked Alien Tech Used ----------------- None Achievements -------------- Infodabbler Challenges ------------ None Game ------ Seed ReactionControlBrace Manual? 0 Play Time 01:05:29 Cumulative 413.7 hours Start 2025.11.19 @ 01:38:26 End 2025.11.19 @ 02:39:35 Sessions 1 Manual Loads 0 Difficulty Rogue Special Mode None Game No. 383 Rogue 383 Adventurer 0 Explorer 0 Win Type - Total 3 Types 2/1/0/0/0/0/0/0/0/0 Lore% 85 Gallery% 84 Achievement% 63 Wizard Run 0 Options --------- Layout 1 ASCII 0 Keyboard 0 Movement Numpad Keybinds 0 Fullscreen 1 Font 24/Smallcaps Map View 50x35 Zoom Use 0% Tactical HUD 1 Map Filters NONE Filters NONE Steam 1 RUN: 5f82facd-a083-4064-8589-4219e3c72777